[Event "GER-ch Youth-U10 2022"]
[Site "Willingen"]
[Date "2022.06.10"]
[Round "9.27"]
[White "Khanbekyan, Aram"]
[Black "Mulgunov, Jefim Nikolaj"]
[Result "0-1"]
[ECO "C56"]
[WhiteElo "998"]
[BlackElo "1055"]
[Annotator "NA RC COMBH"]
[PlyCount "40"]
[EventDate "2022.06.05"]
[EventType "swiss"]
[EventRounds "11"]
[EventCountry "GER"]
[SourceTitle "playchess.com"]
[Source "ChessBase"]
[SourceQuality "1"]
[TimeControl "40/4500+30:900+30"]

1. e4 {[%emt 0:00:02]} e5 {[%emt 0:00:07]} 2. Nf3 {[%emt 0:00:08]} Nc6 {[%emt 0:00:05]} 3. d4 {[%emt 0:00:10]} exd4 {[%emt 0:00:09]} 4. Bc4 {[%emt 0:00:14]} Nf6 {[%emt 0:00:14]} 5. e5 {[%emt 0:00:07]} d5 {[%emt 0:00:06]} 6. Bb5 {[%emt 0:00:08]} Ne4 {[%emt 0:00:11]} 7. Nxd4 {[%emt 0:01:11]} Bc5 {[%emt 0:00:18]} 8. Nxc6 {[%emt 0:00:47]} Bxf2+ {[%emt 0:00:09]} 9. Kf1 {[%emt 0:00:32]} bxc6 {[%emt 0:00:30]} 10. Bxc6+ {[%emt 0:00:10]} Kf8 {[%emt 0:00:08]} 11. Bxa8 {[%emt 0:00:16]} Ba6+ {[%emt 0:00:06]} 12. Qe2 {[%emt 0:00:19]} Bxe2+ {[%emt 0:00:12]} 13. Kxe2 {[%emt 0:00:06]} Qxa8 {[%emt 0:00:12]} 14. Rf1 {[%emt 0:00:46]} Qc6 {[%emt 0:01:54]} 15. c3 {[%emt 0:00:46]} Qc4+ {[%emt 0:00:18]} 16. Kf3 {[%emt 0:00:32]} Qxf1 {[%emt 0:00:14]} 17. Be3 {[%emt 0:01:47]} Bh4+ {[%emt 0:00:38]} 18. Kg4 {[%emt 0:01:13]} Qxg2+ {[%emt 0:01:26]} 19. Kf4 {[%emt 0:00:22]} g5+ {[%emt 0:01:44]} 20. Kf5 {[%emt 0:00:21]} Qh3# {[%emt 0:00:10]} 0-1

[Event "GER-ch Youth-U10 2022"]
[Site "Willingen"]
[Date "2022.06.10"]
[Round "10.1"]
[White "Rodriguez Klasen, Ennio"]
[Black "Nezhyvenko, Mykhaylo"]
[Result "1/2-1/2"]
[ECO "B24"]
[WhiteElo "1315"]
[BlackElo "1488"]
[Annotator "NA RC COMBH"]
[PlyCount "96"]
[EventDate "2022.06.05"]
[EventType "swiss"]
[EventRounds "11"]
[EventCountry "GER"]
[SourceTitle "playchess.com"]
[Source "ChessBase"]
[SourceQuality "1"]
[TimeControl "40/4500+30:900+30"]

1. e4 {[%emt 0:00:06]} c5 {[%emt 0:00:06]} 2. Nc3 {[%emt 0:00:05]} Nc6 {[%emt 0:00:07]} 3. Nge2 {[%emt 0:00:51]} e6 {[%emt 0:00:00]} 4. g3 {[%emt 0:01:15]} Nf6 {[%emt 0:01:03]} 5. Bg2 {[%emt 0:01:03]} Be7 {[%emt 0:00:09]} 6. d3 {[%emt 0:01:02]} O-O {[%emt 0:00:09]} 7. O-O {[%emt 0:05:58]} d5 {[%emt 0:00:07]} 8. exd5 {[%emt 0:00:32]} exd5 {[%emt 0:00:42]} 9. d4 {[%emt 0:01:02]} Bf5 {[%emt 0:01:42]} 10. Be3 {[%emt 0:15:00]} Qd7 {[%emt 0:03:12]} 11. dxc5 {[%emt 0:07:13]} Rfd8 {[%emt 0:00:03]} 12. Nd4 {[%emt 0:02:29]} Bg6 {[%emt 0:03:04]} 13. Nxc6 {[%emt 0:06:09]} bxc6 {[%emt 0:00:37]} 14. Bd4 {[%emt 0:03:05]} Rab8 {[%emt 0:00:02]} 15. Re1 {[%emt 0:06:54]} Bf8 {[%emt 0:03:04]} 16. Rb1 {[%emt 0:05:14]} Qf5 {[%emt 0:01:31]} 17. Re5 {[%emt 0:06:36]} Qxc2 {[%emt 0:00:41]} 18. Qxc2 {[%emt 0:01:00]} Bxc2 {[%emt 0:00:02]} 19. Rc1 {[%emt 0:00:08]} Bg6 {[%emt 0:00:12]} 20. b3 {[%emt 0:03:43]} Rb4 {[%emt 0:00:47]} 21. Ne2 {[%emt 0:00:51]} Ng4 {[%emt 0:00:33]} 22. Rg5 {[%emt 0:00:52]} f5 {[%emt 0:00:34]} 23. h3 {[%emt 0:02:08]} Nh6 {[%emt 0:00:01]} 24. Bc3 {[%emt 0:01:58]} Rb7 {[%emt 0:00:14]} 25. Nd4 {[%emt 0:00:40]} Bxc5 {[%emt 0:05:34]} 26. Ne6 {[%emt 0:01:59]} Be7 {[%emt 0:00:05]} 27. Nxd8 {[%emt 0:00:22]} Bxg5 {[%emt 0:00:01]} 28. Nxb7 {[%emt 0:00:26]} Bxc1 {[%emt 0:00:02]} 29. Bd4 {[%emt 0:00:26]} a6 {[%emt 0:00:12]} 30. Bf1 {[%emt 0:00:45]} f4 {[%emt 0:00:29]} 31. g4 {[%emt 0:00:48]} Bb1 {[%emt 0:00:09]} 32. a4 {[%emt 0:01:37]} Bc2 {[%emt 0:00:04]} 33. Nc5 {[%emt 0:00:37]} a5 {[%emt 0:00:01]} 34. Bd3 {[%emt 0:02:55]} Bd1 {[%emt 0:01:33]} 35. Bb5 {[%emt 0:05:35]} cxb5 {[%emt 0:09:58]} 36. axb5 {[%emt 0:00:07]} Nf7 {[%emt 0:00:13]} 37. b6 {[%emt 0:00:34]} Nd8 {[%emt 0:00:37]} 38. Ne6 {[%emt 0:01:06]} Nb7 {[%emt 0:00:02]} 39. Nc5 {[%emt 0:00:19]} Nd8 {[%emt 0:00:54]} 40. Ne6 {[%emt 0:00:06]} Nc6 {[%emt 0:01:31]} 41. b7 {[%emt 0:15:42]} Be2 {[%emt 0:15:41]} 42. Nd8 {[%emt 0:00:37]} Ba6 {[%emt 0:00:02]} 43. Nxc6 {[%emt 0:00:29]} Bxb7 {[%emt 0:00:00]} 44. Nxa5 {[%emt 0:00:13]} Ba6 {[%emt 0:01:55]} 45. Nc6 {[%emt 0:01:39]} Kf7 {[%emt 0:00:55]} 46. Kg2 {[%emt 0:00:00]} Be2 {[%emt 0:00:00]} 47. Nb4 {[%emt 0:00:00]} f3+ {[%emt 0:00:00]} 48. Kg3 {[%emt 0:00:00]} Bd1 {[%emt 0:05:52]} 1/2-1/2

[Event "GER-ch Youth-U10 2022"]
[Site "Willingen"]
[Date "2022.06.10"]
[Round "10.2"]
[White "Zhang, Yibo"]
[Black "Gersemann, Karl"]
[Result "1/2-1/2"]
[ECO "C45"]
[WhiteElo "1436"]
[BlackElo "1620"]
[Annotator "NA RC COMBH"]
[PlyCount "96"]
[EventDate "2022.06.05"]
[EventType "swiss"]
[EventRounds "11"]
[EventCountry "GER"]
[SourceTitle "playchess.com"]
[Source "ChessBase"]
[SourceQuality "1"]
[TimeControl "40/4500+30:900+30"]

1. e4 {[%emt 0:00:06]} e5 {[%emt 0:00:13]} 2. Nf3 {[%emt 0:00:08]} Nc6 {[%emt 0:02:33]} 3. d4 {[%emt 0:00:12]} exd4 {[%emt 0:00:11]} 4. Nxd4 {[%emt 0:00:05]} Bc5 {[%emt 0:00:33]} 5. Nb3 {[%emt 0:00:07]} Bb6 {[%emt 0:00:14]} 6. Qe2 {[%emt 0:00:05]} Nge7 {[%emt 0:00:51]} 7. Nc3 {[%emt 0:00:22]} d6 {[%emt 0:00:58]} 8. Be3 {[%emt 0:00:15]} Be6 {[%emt 0:01:12]} 9. O-O-O {[%emt 0:00:51]} Qd7 {[%emt 0:01:34]} 10. g3 {[%emt 0:00:33]} Ne5 {[%emt 0:00:51]} 11. Bg2 {[%emt 0:01:59]} Bxe3+ {[%emt 0:09:07]} 12. Qxe3 {[%emt 0:01:22]} Qc6 {[%emt 0:06:44]} 13. Nd5 {[%emt 0:09:10]} Bxd5 {[%emt 0:04:06]} 14. exd5 {[%emt 0:02:48]} Qb6 {[%emt 0:01:37]} 15. Qe2 {[%emt 0:02:05]} O-O-O {[%emt 0:04:40]} 16. f4 {[%emt 0:01:21]} N5g6 {[%emt 0:00:28]} 17. Rhe1 {[%emt 0:02:32]} Rhe8 {[%emt 0:02:41]} 18. Qd3 {[%emt 0:03:11]} Kb8 {[%emt 0:03:44]} 19. h4 {[%emt 0:01:26]} h6 {[%emt 0:07:04]} 20. Re2 {[%emt 0:02:14]} Ng8 {[%emt 0:06:17]} 21. Be4 {[%emt 0:02:36]} Nf8 {[%emt 0:02:22]} 22. Rde1 {[%emt 0:01:22]} Nf6 {[%emt 0:01:51]} 23. Bf3 {[%emt 0:02:28]} Rxe2 {[%emt 0:00:56]} 24. Qxe2 {[%emt 0:00:52]} a6 {[%emt 0:02:02]} 25. Qe3 {[%emt 0:01:26]} Qb4 {[%emt 0:03:53]} 26. a3 {[%emt 0:00:29]} Qa4 {[%emt 0:02:14]} 27. Qd4 {[%emt 0:01:23]} Qd7 {[%emt 0:01:17]} 28. Na5 {[%emt 0:01:41]} Re8 {[%emt 0:01:49]} 29. Rxe8+ {[%emt 0:02:58]} Qxe8 {[%emt 0:01:06]} 30. Kd2 {[%emt 0:00:54]} N8d7 {[%emt 0:01:59]} 31. Qe3 {[%emt 0:00:44]} Qxe3+ {[%emt 0:00:37]} 32. Kxe3 {[%emt 0:00:10]} Nb6 {[%emt 0:00:33]} 33. Kd4 {[%emt 0:00:42]} Ka7 {[%emt 0:06:00]} 34. Nc4 {[%emt 0:01:00]} Nxc4 {[%emt 0:01:53]} 35. Kxc4 {[%emt 0:00:32]} b5+ {[%emt 0:00:28]} 36. Kd4 {[%emt 0:00:25]} Kb6 {[%emt 0:00:53]} 37. b4 {[%emt 0:00:13]} a5 {[%emt 0:00:17]} 38. g4 {[%emt 0:01:35]} axb4 {[%emt 0:01:20]} 39. axb4 {[%emt 0:00:39]} Nh7 {[%emt 0:02:46]} 40. h5 {[%emt 0:01:21]} f5 {[%emt 0:02:14]} 41. Be2 {[%emt 0:22:08]} fxg4 {[%emt 0:15:42]} 42. Bxg4 {[%emt 0:01:33]} Nf6 {[%emt 0:00:16]} 43. Bf3 {[%emt 0:00:05]} Kb7 {[%emt 0:02:36]} 44. c4 {[%emt 0:02:27]} bxc4 {[%emt 0:01:10]} 45. Kxc4 {[%emt 0:00:35]} Kb6 {[%emt 0:00:00]} 46. b5 {[%emt 0:00:00]} Ka5 {[%emt 0:00:00]} 47. Bd1 {[%emt 0:00:00]} Ne4 {[%emt 0:00:00]} 48. Be2 {[%emt 0:00:00]} Nf6 {[%emt 0:00:00]} 1/2-1/2

[Event "GER-ch Youth-U10 2022"]
[Site "Willingen"]
[Date "2022.06.10"]
[Round "10.3"]
[White "Campora, Daniel H."]
[Black "Fischermann, Simon"]
[Result "1/2-1/2"]
[ECO "D00"]
[WhiteElo "2397"]
[BlackElo "1344"]
[Annotator "TA"]
[PlyCount "87"]
[EventDate "2022.06.05"]
[EventType "swiss"]
[EventRounds "11"]
[EventCountry "GER"]
[SourceTitle "playchess.com"]
[Source "ChessBase"]
[SourceQuality "1"]
[TimeControl "40/4500+30:900+30"]

{[%evp 9,87,-10,-8,-12,8,6,5,16,37,13,30,20,95,84,228,218,368,358,348,263,387,367,347,303,353,348,622,147,149,144,211,64,127,122,210,156,450,255,273,269,437,308,414,101,156,94,188,154,311,321,393,328,468,544,531,283,699,292,289,79,74,69,72,0,0,0,0,0,0,0,0,0,0,0,0,0,0,0,0,0]} 1. d4 {[%emt 0:00:02]} d5 {[%emt 0:00:01]} 2. e3 {[%emt 0:00:10]} Nf6 {[%emt 0:00:10]} 3. c3 {[%emt 0:00:44]} e6 {[%emt 0:00:28]} 4. Bd3 {[%emt 0:00:20]} c5 {[%emt 0:00:45]} 5. f4 {[%emt 0:00:41]} c4 {[%emt 0:01:11]} 6. Bc2 {[%emt 0:00:10] D00: 1 d4 d5: Unusual lines.} Bd6 {[%emt 0:01:32]} 7. Nd2 {[%emt 0:00:22]} O-O {[%emt 0:00:35]} 8. Ngf3 {[%emt 0:00:37]} b6 {[%emt 0:04:03]} 9. O-O {[%emt 0:00:51]} Bb7 {[%emt 0:01:20]} 10. Ne5 {[%emt 0:00:37] [#]} Nfd7 $146 {[%emt 0:00:48]} (10... b5 $11 {keeps the balance.}) ({Predecessor:} 10... Qc7 11. Ndf3 Nfd7 12. Bxh7+ Kxh7 13. Ng5+ Kg8 14. Qh5 Nf6 15. Qh4 g6 16. Qh6 Re8 17. Ngxf7 Qxf7 18. Nxf7 Kxf7 {½-½ (48) Voudouris,N (1354)-Bieszk,S (1246) LSS email 2012}) 11. e4 $16 {[%emt 0:05:45] White is more active.} (11. Qh5 f5 $14) 11... Bxe5 {[%emt 0:03:01]} (11... Nf6 $16) 12. fxe5 $18 {[%emt 0:00:06]} Nc6 {[%emt 0:12:57]} (12... f6 $142 13. exf6 Nxf6) 13. exd5 {[%emt 0:09:24]} exd5 {[%emt 0:00:11]} 14. Qf3 {[%emt 0:00:49]} (14. Qh5 g6 15. Qh3 Bc8) 14... Ne7 {[%emt 0:00:58]} (14... Ndxe5 {was worth a try.} 15. dxe5 Nxe5) 15. Qh3 {[%emt 0:03:42][%csl Gc2][%cal Rh3h7]} ({Less strong is} 15. Nxc4 Ba6 $18) 15... Ng6 {[%emt 0:00:34]} 16. Bf5 {[%emt 0:06:38]} Bc8 {[%emt 0:05:31]} 17. Nf3 {[%emt 0:09:18]} Nb8 $2 {[%emt 0:01:07]} (17... Qe8 18. Bd2 a6) 18. Bxc8 $2 {[%emt 0:01:38]} (18. e6 $18 {has better winning chances.} fxe6 19. Ng5 $1 Rxf5 20. Qxh7+ Kf8 21. Rxf5+ (21. Qxg6 Rxf1+ 22. Kxf1 Qf6+ 23. Qxf6+ gxf6 $11) 21... exf5 22. Qxg6) 18... Qxc8 $16 {[%emt 0:00:58]} 19. Qg3 {[%emt 0:02:29]} Qc6 {[%emt 0:09:01] [#]} (19... Nc6 $16) 20. Bf4 {[%emt 0:02:27]} ({Better is} 20. h4 $1 $18 {[%cal Rh4h5]}) 20... Nxf4 {[%emt 0:01:28]} (20... Nd7 $14) 21. Qxf4 {[%emt 0:00:12]} Nd7 {[%emt 0:01:59]} (21... Qd7 $16 {was necessary.}) 22. Rae1 {[%emt 0:04:35]} Qb5 $2 {[%emt 0:03:14]} (22... Kh8 $16 23. Qf5 Qe6) 23. Qd2 {[%emt 0:02:16]} (23. Nh4 $142) 23... Rae8 $18 {[%emt 0:00:51] [#]} 24. Nh4 $1 {[%emt 0:04:08]} g6 $2 {[%emt 0:05:02]} (24... Qc6 25. Nf5 f6) 25. a3 {[%emt 0:01:32]} a5 {[%emt 0:01:41]} 26. Nf3 $2 {[%emt 0:01:33]} (26. Qh6 $18) 26... Kg7 {[%emt 0:00:46]} (26... Qc6 $142) 27. Rf2 {[%emt 0:00:24]} ({White should try} 27. g4) 27... h6 {[%emt 0:01:41]} (27... Qc6 $16 {might work better.}) 28. h3 {[%emt 0:00:21]} Re6 $2 {[%emt 0:00:25]} (28... Qc6 $16 {is a better defense.} 29. Qc2 Qe6) 29. Nh2 {[%emt 0:01:05]} h5 {[%emt 0:00:54]} 30. Nf3 {[%emt 0:00:20]} f6 {[%emt 0:00:54]} (30... Qc6 {keeps fighting.} 31. Ng5 Ree8) 31. exf6+ {[%emt 0:00:34]} Rexf6 {[%emt 0:00:20]} 32. Re7+ {[%emt 0:01:13]} R6f7 $2 {[%emt 0:01:23]} (32... R8f7 33. Rfe2 Nf8) 33. Rxf7+ {[%emt 0:00:27]} (33. Rfe2 $142) 33... Rxf7 {[%emt 0:00:16]} 34. Ng5 $2 {[%emt 0:01:05]} (34. Re2 $18 {and White stays clearly on top.}) 34... Rxf2 $16 {[%emt 0:01:10]} 35. Qxf2 {[%emt 0:00:08][%mdl 4096] Endgame White threatens Qf7+ and mate. KQN-KQN} Nf6 $1 {[%emt 0:00:15]} 36. Qe2 {[%emt 0:02:43]} (36. Qf4 $16) 36... Qe8 $11 {[%emt 0:01:26] The position is equal.} 37. Qxe8 {[%emt 0:02:38]} Nxe8 {[%emt 0:00:10] KN-KN} 38. Kf2 {[%emt 0:00:36]} Kf6 {[%emt 0:00:11]} 39. h4 {[%emt 0:00:16]} Nd6 {[%emt 0:00:46]} 40. Kf3 {[%emt 0:00:25]} Kf5 {[%emt 0:00:44]} 41. g3 {[%emt 0:15:48]} b5 {[%emt 0:16:13]} 42. Nh3 {[%emt 0:00:38] Nf4 is the strong threat.} Ne4 {[%emt 0:01:22]} 43. Nf4 {[%emt 0:00:26]} Nf6 {[%emt 0:00:17]} 44. Ng2 {[%emt 0:00:41] Black defended with fortune.  Weighted Error Value: White=0.79/Black=0.69} 1/2-1/2

[Event "GER-ch Youth-U10 2022"]
[Site "Willingen"]
[Date "2022.06.10"]
[Round "10.4"]
[White "Dotschuweit, Erik"]
[Black "Shen, Tingrui"]
[Result "1/2-1/2"]
[ECO "B02"]
[WhiteElo "1323"]
[BlackElo "1621"]
[Annotator "NA RC COMBH"]
[PlyCount "65"]
[EventDate "2022.06.05"]
[EventType "swiss"]
[EventRounds "11"]
[EventCountry "GER"]
[SourceTitle "playchess.com"]
[Source "ChessBase"]
[SourceQuality "1"]
[TimeControl "40/4500+30:900+30"]

1. e4 {[%emt 0:00:04]} c5 {[%emt 0:00:21]} 2. Nf3 {[%emt 0:00:20]} Nf6 {[%emt 0:00:32]} 3. Nc3 {[%emt 0:03:05]} d5 {[%emt 0:01:40]} 4. exd5 {[%emt 0:01:01]} Nxd5 {[%emt 0:01:27]} 5. Bc4 {[%emt 0:01:13]} Nxc3 {[%emt 0:04:50]} 6. bxc3 {[%emt 0:00:28]} e6 {[%emt 0:01:23]} 7. d4 {[%emt 0:00:28]} Be7 {[%emt 0:04:40]} 8. O-O {[%emt 0:02:48]} O-O {[%emt 0:02:03]} 9. Bf4 {[%emt 0:06:32]} Nc6 {[%emt 0:04:34]} 10. Qe2 {[%emt 0:11:27]} a6 {[%emt 0:10:34]} 11. a4 {[%emt 0:00:44]} b6 {[%emt 0:11:12]} 12. Rad1 {[%emt 0:02:30]} cxd4 {[%emt 0:09:47]} 13. cxd4 {[%emt 0:00:29]} Na5 {[%emt 0:01:07]} 14. Bd3 {[%emt 0:00:15]} Bb7 {[%emt 0:02:42]} 15. Ne5 {[%emt 0:01:36]} Bf6 {[%emt 0:18:18]} 16. Qh5 {[%emt 0:06:56]} g6 {[%emt 0:00:40]} 17. Qg4 {[%emt 0:02:59]} Bg7 {[%emt 0:05:54]} 18. Bg5 {[%emt 0:01:37]} Qd6 {[%emt 0:01:17]} 19. Nf3 {[%emt 0:05:58]} Rac8 {[%emt 0:00:56]} 20. h4 {[%emt 0:01:18]} h5 {[%emt 0:00:31]} 21. Qh3 {[%emt 0:01:53]} Nc4 {[%emt 0:00:25]} 22. Nd2 {[%emt 0:02:14]} Nb2 {[%emt 0:00:18]} 23. Rb1 {[%emt 0:00:35]} Nxd3 {[%emt 0:00:20]} 24. Qxd3 {[%emt 0:00:40]} Qxd4 {[%emt 0:00:29]} 25. Be3 {[%emt 0:02:14]} Qxd3 {[%emt 0:00:32]} 26. cxd3 {[%emt 0:00:14]} b5 {[%emt 0:00:21]} 27. axb5 {[%emt 0:00:25]} axb5 {[%emt 0:00:32]} 28. Rxb5 {[%emt 0:00:50]} Ba6 {[%emt 0:00:23]} 29. Rb3 {[%emt 0:00:51]} Rfd8 {[%emt 0:00:19]} 30. Nc4 {[%emt 0:07:52]} Rxc4 {[%emt 0:01:08]} 31. dxc4 {[%emt 0:02:09]} Bxc4 {[%emt 0:00:12]} 32. Rfb1 {[%emt 0:01:11]} Bxb3 {[%emt 0:00:12]} 33. Rxb3 {[%emt 0:00:40]} 1/2-1/2

[Event "GER-ch Youth-U10 2022"]
[Site "Willingen"]
[Date "2022.06.10"]
[Round "10.5"]
[White "Bundan, Edward"]
[Black "Li, Yunqi"]
[Result "1-0"]
[ECO "B87"]
[WhiteElo "1240"]
[BlackElo "1312"]
[Annotator "NA RC COMBH"]
[PlyCount "111"]
[EventDate "2022.06.05"]
[EventType "swiss"]
[EventRounds "11"]
[EventCountry "GER"]
[SourceTitle "playchess.com"]
[Source "ChessBase"]
[SourceQuality "1"]
[TimeControl "40/4500+30:900+30"]

1. e4 {[%emt 0:00:04]} c5 {[%emt 0:00:00]} 2. Nf3 {[%emt 0:00:24]} d6 {[%emt 0:00:00]} 3. d4 {[%emt 0:00:06]} cxd4 {[%emt 0:00:00]} 4. Nxd4 {[%emt 0:00:26]} Nf6 {[%emt 0:00:00]} 5. Nc3 {[%emt 0:00:06]} a6 {[%emt 0:00:05]} 6. Bc4 {[%emt 0:00:17]} e6 {[%emt 0:00:05]} 7. Bg5 {[%emt 0:00:24]} b5 {[%emt 0:00:35]} 8. Bb3 {[%emt 0:00:07]} Be7 {[%emt 0:00:10]} 9. Qf3 {[%emt 0:00:35]} Qc7 {[%emt 0:00:25]} 10. O-O-O {[%emt 0:01:00]} Bb7 {[%emt 0:01:01]} 11. Rhe1 {[%emt 0:02:00]} Nbd7 {[%emt 0:01:30]} 12. Bxe6 {[%emt 0:04:01]} O-O {[%emt 0:02:29]} 13. Bxd7 {[%emt 0:01:23]} Qxd7 {[%emt 0:00:45]} 14. Nf5 {[%emt 0:00:52]} h6 {[%emt 0:02:26]} 15. Bxf6 {[%emt 0:00:29]} Bxf6 {[%emt 0:00:15]} 16. Rxd6 {[%emt 0:00:48]} Qc7 {[%emt 0:03:38]} 17. Nxh6+ {[%emt 0:02:00]} Kh7 {[%emt 0:03:06]} 18. Nf5 {[%emt 0:00:40]} Bg5+ {[%emt 0:00:15]} 19. Kb1 {[%emt 0:01:49]} g6 {[%emt 0:05:10]} 20. Red1 {[%emt 0:01:29]} Rad8 {[%emt 0:08:08]} 21. R6d3 {[%emt 0:16:38]} Rxd3 {[%emt 0:06:34]} 22. cxd3 {[%emt 0:00:42]} b4 {[%emt 0:04:04]} 23. Ne2 {[%emt 0:04:16]} Qe5 {[%emt 0:05:21]} 24. Ne3 {[%emt 0:11:35]} Kg7 {[%emt 0:04:42]} 25. Qg3 {[%emt 0:02:36]} Qxg3 {[%emt 0:01:21]} 26. hxg3 {[%emt 0:01:03]} Rd8 {[%emt 0:00:13]} 27. f4 {[%emt 0:01:10]} Be7 {[%emt 0:00:38]} 28. Kc2 {[%emt 0:03:00]} Bc5 {[%emt 0:00:19]} 29. Nc4 {[%emt 0:01:05]} f6 {[%emt 0:02:40]} 30. Na5 {[%emt 0:03:09]} Ba8 {[%emt 0:00:03]} 31. Nb3 {[%emt 0:00:28]} Bb6 {[%emt 0:00:53]} 32. Rf1 {[%emt 0:04:49]} Rc8+ {[%emt 0:00:44]} 33. Kb1 {[%emt 0:01:03]} Rd8 {[%emt 0:01:15]} 34. Nec1 {[%emt 0:02:58]} f5 {[%emt 0:01:18]} 35. Nd2 {[%emt 0:02:04]} Re8 {[%emt 0:04:10]} 36. Nc4 {[%emt 0:02:18]} Ba7 {[%emt 0:00:52]} 37. Nd6 {[%emt 0:02:17]} Rd8 {[%emt 0:02:49]} 38. e5 {[%emt 0:00:52]} Bxg2 {[%emt 0:01:44]} 39. Re1 {[%emt 0:00:51]} Bc6 {[%emt 0:00:17]} 40. Re2 {[%emt 0:01:03]} Rd7 {[%emt 0:11:02]} 41. Rc2 {[%emt 0:15:36]} Bd5 {[%emt 0:17:02]} 42. Nb3 {[%emt 0:00:56]} Bxb3 {[%emt 0:01:57]} 43. axb3 {[%emt 0:00:51]} a5 {[%emt 0:02:22]} 44. Kc1 {[%emt 0:03:57]} Kh6 {[%emt 0:00:08]} 45. Rh2+ {[%emt 0:00:57]} Kg7 {[%emt 0:00:25]} 46. Ne8+ {[%emt 0:02:06]} Kf7 {[%emt 0:01:38]} 47. Nd6+ {[%emt 0:01:55]} Kg7 {[%emt 0:00:08]} 48. Re2 {[%emt 0:02:05]} Kf8 {[%emt 0:00:33]} 49. Rc2 {[%emt 0:01:55]} Ke7 {[%emt 0:05:09]} 50. Nc8+ {[%emt 0:01:08]} Ke8 {[%emt 0:00:28]} 51. Nxa7 {[%emt 0:00:20]} Rxa7 {[%emt 0:00:09]} 52. Rc6 {[%emt 0:00:28]} Kf7 {[%emt 0:00:30]} 53. Rb6 {[%emt 0:00:34]} Rc7+ {[%emt 0:01:15]} 54. Kd2 {[%emt 0:00:12]} Ra7 {[%emt 0:00:06]} 55. Rc6 {[%emt 0:00:28]} Rb7 {[%emt 0:00:46]} 56. d4 {[%emt 0:00:15]} 1-0

[Event "GER-ch Youth-U10 2022"]
[Site "Willingen"]
[Date "2022.06.10"]
[Round "10.6"]
[White "Rau, Eduard"]
[Black "Peglau, Paul David"]
[Result "0-1"]
[ECO "B13"]
[WhiteElo "1406"]
[BlackElo "1623"]
[Annotator "NA RC COMBH"]
[PlyCount "92"]
[EventDate "2022.06.05"]
[EventType "swiss"]
[EventRounds "11"]
[EventCountry "GER"]
[SourceTitle "playchess.com"]
[Source "ChessBase"]
[SourceQuality "1"]
[TimeControl "40/4500+30:900+30"]

1. e4 {[%emt 0:00:07]} c6 {[%emt 0:00:30]} 2. d4 {[%emt 0:00:04]} d5 {[%emt 0:00:01]} 3. exd5 {[%emt 0:00:06]} cxd5 {[%emt 0:00:02]} 4. Bd3 {[%emt 0:00:07]} Nc6 {[%emt 0:00:28]} 5. c3 {[%emt 0:00:03]} Nf6 {[%emt 0:00:10]} 6. Bf4 {[%emt 0:00:08]} Bg4 {[%emt 0:01:49]} 7. Qb3 {[%emt 0:00:05]} Qc8 {[%emt 0:00:39]} 8. Nd2 {[%emt 0:00:10]} e6 {[%emt 0:00:47]} 9. Ngf3 {[%emt 0:00:54]} Be7 {[%emt 0:00:53]} 10. Ne5 {[%emt 0:01:22]} Bh5 {[%emt 0:03:35]} 11. O-O {[%emt 0:01:27]} O-O {[%emt 0:01:20]} 12. Qc2 {[%emt 0:00:42]} Bg6 {[%emt 0:04:30]} 13. Nxg6 {[%emt 0:00:57]} hxg6 {[%emt 0:00:07]} 14. Rae1 {[%emt 0:01:32]} b5 {[%emt 0:02:49]} 15. Nf3 {[%emt 0:04:12]} b4 {[%emt 0:01:56]} 16. Qa4 {[%emt 0:00:43]} bxc3 {[%emt 0:02:16]} 17. bxc3 {[%emt 0:00:20]} Nd7 {[%emt 0:05:28]} 18. Ba6 {[%emt 0:02:50]} Nb6 {[%emt 0:04:35]} 19. Bxc8 {[%emt 0:01:15]} Nxa4 {[%emt 0:00:02]} 20. Bb7 {[%emt 0:00:09]} Na5 {[%emt 0:00:43]} 21. Bxa8 {[%emt 0:00:36]} Rxa8 {[%emt 0:00:03]} 22. Ne5 {[%emt 0:00:31]} Nxc3 {[%emt 0:01:46]} 23. Bd2 {[%emt 0:00:09]} Rc8 {[%emt 0:00:29]} 24. Re3 {[%emt 0:00:18]} Bb4 {[%emt 0:03:15]} 25. a3 {[%emt 0:02:06]} Nb3 {[%emt 0:01:27]} 26. axb4 {[%emt 0:04:24]} Nxd2 {[%emt 0:00:19]} 27. Ra1 {[%emt 0:00:17]} Nb3 {[%emt 0:01:08]} 28. Rae1 {[%emt 0:01:57]} Nxd4 {[%emt 0:01:03]} 29. Kf1 {[%emt 0:03:03]} Nc2 {[%emt 0:06:45]} 30. Rxc3 {[%emt 0:01:05]} Rxc3 {[%emt 0:00:22]} 31. Rc1 {[%emt 0:00:08]} Ne3+ {[%emt 0:00:55]} 32. Ke2 {[%emt 0:00:12]} Rxc1 {[%emt 0:00:06]} 33. Kxe3 {[%emt 0:00:03]} Re1+ {[%emt 0:00:24]} 34. Kd4 {[%emt 0:00:03]} Re4+ {[%emt 0:00:17]} 35. Kd3 {[%emt 0:01:20]} Rxe5 {[%emt 0:00:02]} 36. f4 {[%emt 0:00:06]} Re4 {[%emt 0:00:10]} 37. f5 {[%emt 0:00:09]} Rxb4 {[%emt 0:00:07]} 38. fxe6 {[%emt 0:00:06]} fxe6 {[%emt 0:00:01]} 39. g4 {[%emt 0:00:07]} a5 {[%emt 0:00:06]} 40. Kc3 {[%emt 0:00:03]} d4+ {[%emt 0:00:06]} 41. Kd3 {[%emt 0:15:03]} a4 {[%emt 0:15:07]} 42. g5 {[%emt 0:00:04]} a3 {[%emt 0:00:05]} 43. h4 {[%emt 0:00:09]} a2 {[%emt 0:00:03]} 44. h5 {[%emt 0:00:02]} a1=Q {[%emt 0:00:08]} 45. hxg6 {[%emt 0:00:08]} Qc3+ {[%emt 0:00:05]} 46. Ke2 {[%emt 0:00:07]} Rb2+ {[%emt 0:00:07]} 0-1